{"text_format":"1","workbook":"xlsx","n_sheets":2,"sheets":["Задание","Event"],"not_rendered":{"charts":0,"images":0,"macros":1,"external_links":0,"defined_names":0,"comments":0,"pivot_tables":0},"unopened":[],"bounds":{"document_bytes":16777216,"sheet_cells":100000,"rows_first":2000,"rows_last":500,"rows_between":2000,"halvings":0,"cell_chars":16384,"cell_head_chars":4096},"cells_cut":0,"cells_raw":0,"read":"whole","date_system":"1900"}

{"sheet":"Задание","index":0,"n_rows":0,"n_cols":0,"rows_kept":0,"cut":false,"hidden":false,"merged":[]}

{"sheet":"Event","index":1,"n_rows":27,"n_cols":9,"rows_kept":27,"cut":false,"hidden":false,"merged":[]}
[null,null,"задача",null,null,"Пример измененения в ячейках A6:В6","№ изменения","Величина изменения","Отклонение"]
["ТАБЛИЦА",null,"МОЯ ТАБЛИЦА",null,null,null,{"$f":"IF(H2<>0,\"Изменение \"&COUNT(H$2:H2),\"-\")","v":"Изменение 1"},20,"дельта"]
[null,null,null,null,null,null,{"$f":"IF(H3<>0,\"Изменение \"&COUNT(H$2:H3),\"-\")","v":"Изменение 2"},20,"-"]
[null,null,null,null,null,null,{"$f":"IF(H4<>0,\"Изменение \"&COUNT(H$2:H4),\"-\")","v":"Изменение 3"},23,"дельта"]
["Динамические данные ","Название ","Предыдущее значение ячейки A6",null,null,null,{"$f":"IF(H5<>0,\"Изменение \"&COUNT(H$2:H5),\"-\")","v":"Изменение 4"},24,"дельта"]
[0.9,"дельта",0.8,null,null,null,{"$f":"IF(H6<>0,\"Изменение \"&COUNT(H$2:H6),\"-\")","v":"Изменение 5"},24,"-"]
[null,null,null,null,null,null,{"$f":"IF(H7<>0,\"Изменение \"&COUNT(H$2:H7),\"-\")","v":"Изменение 6"},34,"дельта"]
[null,null,null,null,null,null,{"$f":"IF(H8<>0,\"Изменение \"&COUNT(H$2:H8),\"-\")","v":"Изменение 7"},54,"дельта"]
[null,null,null,null,null,null,{"$f":"IF(H9<>0,\"Изменение \"&COUNT(H$2:H9),\"-\")","v":"Изменение 8"},54,"-"]
[null,null,null,null,null,null,{"$f":"IF(H10<>0,\"Изменение \"&COUNT(H$2:H10),\"-\")","v":"Изменение 9"},64,"дельта"]
[null,null,null,null,null,null,{"$f":"IF(H11<>0,\"Изменение \"&COUNT(H$2:H11),\"-\")","v":"Изменение 10"},64,"дельта"]
[null,null,null,null,null,null,{"$f":"IF(H12<>0,\"Изменение \"&COUNT(H$2:H12),\"-\")","v":"Изменение 11"},65,"дельта"]
[null,null,null,null,null,null,{"$f":"IF(H13<>0,\"Изменение \"&COUNT(H$2:H13),\"-\")","v":"Изменение 12"},66,"дельта"]
[null,null,null,null,null,null,{"$f":"IF(H14<>0,\"Изменение \"&COUNT(H$2:H14),\"-\")","v":"Изменение 13"},67,"дельта"]
[null,null,null,null,null,null,{"$f":"IF(H15<>0,\"Изменение \"&COUNT(H$2:H15),\"-\")","v":"Изменение 14"},67,"-"]
[null,null,null,null,null,null,{"$f":"IF(H16<>0,\"Изменение \"&COUNT(H$2:H16),\"-\")","v":"Изменение 15"},68,"дельта"]
[null,null,null,null,null,null,{"$f":"IF(H17<>0,\"Изменение \"&COUNT(H$2:H17),\"-\")","v":"Изменение 16"},0.8,"дельта"]
[null,null,null,null,null,null,{"$f":"IF(H18<>0,\"Изменение \"&COUNT(H$2:H18),\"-\")","v":"Изменение 17"},0.8,"-"]
[null,null,null,null,null,null,{"$f":"IF(H19<>0,\"Изменение \"&COUNT(H$2:H19),\"-\")","v":"Изменение 18"},0.9,"дельта"]
[null,null,null,null,null,null,{"$f":"IF(H20<>0,\"Изменение \"&COUNT(H$2:H20),\"-\")","v":"-"}]
[null,null,null,null,null,null,{"$f":"IF(H21<>0,\"Изменение \"&COUNT(H$2:H21),\"-\")","v":"-"}]
[null,null,null,null,null,null,{"$f":"IF(H22<>0,\"Изменение \"&COUNT(H$2:H22),\"-\")","v":"-"}]
[null,null,null,null,null,null,{"$f":"IF(H23<>0,\"Изменение \"&COUNT(H$2:H23),\"-\")","v":"-"}]
[null,null,null,null,null,null,{"$f":"IF(H24<>0,\"Изменение \"&COUNT(H$2:H24),\"-\")","v":"-"}]
[null,null,null,null,null,null,{"$f":"IF(H25<>0,\"Изменение \"&COUNT(H$2:H25),\"-\")","v":"-"}]
[null,null,null,null,null,null,{"$f":"IF(H26<>0,\"Изменение \"&COUNT(H$2:H26),\"-\")","v":"-"}]
[null,null,null,null,null,null,{"$f":"IF(H27<>0,\"Изменение \"&COUNT(H$2:H27),\"-\")","v":"-"}]